Cogmind - Beta 15 @@@ ROGUE MODE // 2025.08.18 @ 00:14:31 Player: BigSipp Result: Destroyed by S-10 Pest with Light Assault Rifle Performance ------------- Evolutions (1) 500 Regions Visited (2) 400 Robots Destroyed (23) 115 Value Destroyed (559) 559 Prototype IDs (0) 0 Alien Tech Used (0) 0 Bonus (0) 0 TOTAL SCORE: 1574 Bonus ------- None Cogmind --------- Core Integrity 0/400 Matter 300/300 Energy 95/100 System Corruption 0% Temperature Cool (0) Movement Core (1050) Ox20 Location -9/Materials Parts ------- > --- POWER (1) -------- (None) > --- PROPULSION (4) --- (None) > --- UTILITY (2) ------ Large Storage Unit High-capacity Storage Unit > --- WEAPON (2) ------- Beam Rifle > --- INVENTORY (20) --- Structural Scanner Light Assault Rifle Light Assault Rifle Light Assault Rifle Light Assault Rifle Peak State ------------ > --- POWER ------------ Light Ion Engine > --- PROPULSION ------- Aluminum Leg Aluminum Leg > --- UTILITY ---------- Sensor Array Improved Terrain Scanner > --- WEAPON ----------- Light Assault Rifle Light Assault Rifle > --- INVENTORY -------- Wheel Wheel Wheel Light Assault Rifle Mining Laser [Rating: 9] Favorites ----------- Power Light Ion Engine Engine Light Ion Engine Propulsion Aluminum Leg Treads Light Treads Leg Aluminum Leg Wheel Wheel Utility High-capacity Storage Unit Device Heat Sink Storage High-capacity Storage Unit Weapon Light Assault Rifle Energy Gun Beam Rifle Energy Cannon Beam Cannon Ballistic Gun Light Assault Rifle Launcher Grenade Launcher Special Weapon Mining Laser Build | -11 -10 -9 ------- Run | Yrd Mat Mat Slots Evolved 2 | . . 2 Power . | . . . Propulsion 2 | . . 2 Utility . | . . . Weapon . | . . . Parts Attached 28 | 7 12 9 Power 6 | 1 3 2 Engine 6 | 1 3 2 Core . | . . . Reactor . | . . . Propulsion 8 | 3 3 2 Treads 1 | . . 1 Leg 6 | 3 3 . Wheel 1 | . . 1 Hover . | . . . Flight . | . . . Utility 6 | 1 4 1 Device 4 | 1 3 . Storage 2 | . 1 1 Processor . | . . . Hackware . | . . . Protection . | . . . Artifact . | . . . Weapon 8 | 2 2 4 Energy Gun 1 | . . 1 Energy Cannon 2 | . 1 1 Ballistic Gun 3 | 2 1 . Ballistic Cannon . | . . . Launcher 1 | . . 1 Special Weapon 1 | . . 1 Impact Weapon . | . . . Slashing Weapon . | . . . Piercing Weapon . | . . . Special Melee Weapon . | . . . Unidentified Prototypes . | . . . Parts Lost 14 | . 2 12 Power 3 | . . 3 Propulsion 4 | . . 4 Utility 2 | . 2 . Weapon 5 | . . 5 Highest Loss Streak 4 | . 1 4 To Critical Strikes . | . . . Average Backups 4 | 2 5 4 Power . | . . . Propulsion . | 2 1 . Utility . | . . . Weapon 3 | . 3 4 Tool/Special . | . . . Unused Backups 6 | . 2 4 Power . | . . . Propulsion 2 | . 2 . Utility 1 | . . 1 Weapon 3 | . . 3 Tool/Special . | . . . Average Slot Usage (%) 77 | . 95 63 Engine 9 | . 13 6 Treads 2 | . . 4 Leg 16 | . 27 6 Wheel 2 | . . 4 Device 7 | . 15 . Storage 15 | . 8 21 Energy Gun 1 | . . 3 Energy Cannon 6 | . 11 1 Ballistic Gun 11 | . 16 7 Launcher 2 | . . 5 Peak Build Rating 9 | 8 9 9 Average Rating 6 | 4 7 6 On Entrance 4 | . 8 6 Naked Turns . | . . . Heaviest Build 71 | 6 50 71 Greatest Support 20 | 20 20 20 Greatest Overweight (x) 22 | . 4 22 Average Overweight (x) 2 | . . 6 Largest Inventory Capacity 20 | 5 20 20 Average Capacity 16 | 5 13 20 Most Carried 9 | 5 6 9 Average Carried 4 | 2 5 4 Final Capacity 20 | 5 20 20 Final Carried 6 | 5 6 5 Class Distribution -------------------- 60% | Mutant 39% | Scavenger-Mutant Dominant Class ---------------- Scavenger-Mutant | -10/Materials Mutant | -9/Materials Resources | -11 -10 -9 ----------- Run | Yrd Mat Mat Matter Collected 571 | 266 142 163 Remotely . | . . . Salvage Created 626 | 36 273 317 Parts 50 | 1 20 29 Haulers Intercepted . | . . . Recyclers Shooed . | . . . Parts Field Recycled . | . . . Retrieved Matter . | . . . Parts Self-Destructed . | . . . Prevented . | . . . Kills | -11 -10 -9 ------- Run | Yrd Mat Mat Combat Hostiles Destroyed 20 | 1 9 10 Guns 7 | 1 1 5 Cannons 10 | . 8 2 AOE 3 | . . 3 Classes Destroyed 5 | 1 2 2 Builder 1 | . . 1 Watcher 2 | . 1 1 Swarmer 8 | . 5 3 Grunt 11 | 1 4 6 Sentry 1 | . . 1 Best Kill Streak 4 | 1 3 4 Combat Bots Only 4 | 1 3 4 Max Kills in Single Turn 1 | 1 1 1 Gunslinging . | . . . Exploded 1 | . . 1 Melee . | . . . Uniques/NPCs Destroyed . | . . . Combat | -11 -10 -9 -------- Run | Yrd Mat Mat Hostile Shots Fired 235 | 8 66 161 Missed 53 | 2 18 33 Hits 182 | 6 48 128 Projectile 182 | 6 48 128 Critical Strikes 2 | . 1 1 Damage Taken 1910 | 64 518 1328 Core 562 | 33 128 401 Absorbed by Shields . | . . . Core Remaining (%) 60 | 86 35 . Volleys Fired 65 | 5 28 32 Largest 2 | 2 2 2 Hottest 80 | 40 80 80 Shots Fired 111 | 10 56 45 Gun 70 | 10 28 32 Cannon 33 | . 28 5 Launcher 8 | . . 8 Special . | . . . Kinetic 65 | 10 28 27 Thermal 38 | . 28 10 Explosive 8 | . . 8 Electromagnetic . | . . . Robot Hit Streak 9 | 4 8 9 Robot Miss Streak 4 | 2 4 3 Penetration Max . | . . . Secondary Targets . | . . . Shots Hit Robots 64 | 5 30 29 Core Hits 36 | 3 15 18 Critical Kills . | . . . Critical Parts Destroyed . | . . . Critical Strikes . | . . . Melee Attacks . | . . . Impact . | . . . Slashing . | . . . Piercing . | . . . Sneak Attacks . | . . . Combat Hostiles . | . . . Follow-up Attacks . | . . . Damage Inflicted 1074 | 71 444 559 Guns 352 | 69 92 191 Cannons 385 | . 332 53 Explosions 303 | . . 303 Melee . | . . . Ramming 34 | 2 20 12 Kinetic 294 | 69 92 133 Thermal 443 | . 332 111 Explosive 303 | . . 303 Electromagnetic . | . . . Impact . | . . . Slashing . | . . . Piercing . | . . . Highest Corruption . | . . . Average Corruption . | . . . Corruption Purged . | . . . Corruption Blocked . | . . . Overload Shots . | . . . Overflow Damage 10 | . . 10 Projectiles . | . . . Explosions 10 | . . 10 Melee . | . . . Knockbacks . | . . . Impact . | . . . Kinetic . | . . . Secondary . | . . . Self-Inflicted Damage 106 | . . 106 Shots 5 | . . 5 Rammed 1 | . . 1 Targets Rammed 7 | 1 5 1 Kicked 6 | 1 5 . Crushed . | . . . Highest Temperature 283 | 6 283 56 Average Temperature 63 | 6 87 14 Received Heat Transfer 603 | 36 177 390 Siege Activations . | . . . Martial Activations . | . . . Shielding Activations . | . . . Robots Disrupted . | . . . Combat Hostiles . | . . . Robots Corrupted . | . . . Combat Hostiles . | . . . Parts Fried . | . . . Impact Corruptions . | . . . Robots Melted . | . . . Combat Hostiles . | . . . Parts Melted 2 | . 1 1 Heat Transferred 962 | . 703 259 Parts Sabotaged . | . . . Parts Stolen . | . . . Parts Stripped . | . . . Power Chain Reactions . | . . . Alert | -11 -10 -9 ------- Run | Yrd Mat Mat Maximum Alert Level . | . . . Low Security (%) 100 | 100 100 100 Level 1 . | . . . Level 2 . | . . . Level 3 . | . . . Level 4 . | . . . Level 5 . | . . . High Security . | . . . Max Security . | . . . Peak Influence 97 | 20 70 97 Initial 12 | . . 12 Average 16 | 2 14 20 Influence Increases 553 | 20 208 325 Destroy 0b10 Robot/C 400 | 20 180 200 Destroy 0b10 Robot/NC 15 | . 5 10 Destroy Leader 54 | . 22 32 Disable Machine 15 | . . 15 Destroy Structure 54 | . 1 53 Lose Combat Pursuer 15 | . . 15 Influence Decreases 550 | 20 178 352 Entered New Map 18 | . . 18 Time Decay 462 | 20 178 264 Lost Part 70 | . . 70 Squads Dispatched 2 | . . 2 Investigation . | . . . Extermination . | . . . Reinforcement 2 | . . 2 Assault . | . . . Garrison . | . . . Intercept . | . . . Searches Triggered . | . . . Construction Impeded 1 | . . 1 Haulers Reinforced . | . . . Active Scanning Responses . | . . . Cargo Convoy Interrupts . | . . . Stealth | -11 -10 -9 --------- Run | Yrd Mat Mat Distress Signals 3 | . 2 1 Communications Jammed . | . . . Distress Signals . | . . . Times Spotted 32 | 1 17 14 Peak Tracking Total 6 | 1 4 6 Tactical Retreats 1 | . . 1 Traps | -11 -10 -9 ------- Run | Yrd Mat Mat Traps Triggered 1 | . 1 . Indirectly . | . . . Trap Hack Attempts . | . . . Triggered . | . . . Disarmed . | . . . Reprogrammed . | . . . Reused . | . . . Traps Extracted . | . . . Installed . | . . . Triggered . | . . . Machines | -11 -10 -9 ---------- Run | Yrd Mat Mat Machines Disabled 1 | . . 1 Max in Single Turn 1 | . . 1 Machines Repaired . | . . . Machines Dismantled . | . . . Machines Sabotaged . | . . . Overloaded Fab Kills . | . . . Hacking | -11 -10 -9 --------- Run | Yrd Mat Mat Machines Accessed . | . . . Terminals . | . . . Fabricators . | . . . Repair Stations . | . . . Recycling Units . | . . . Scanalyzers . | . . . Garrison Access . | . . . Total Hacks . | . . . Successful . | . . . Failed . | . . . Catastrophic . | . . . Database Lockouts . | . . . Manual . | . . . Terminals . | . . . Fabricators . | . . . Repair Stations . | . . . Recycling Units . | . . . Scanalyzers . | . . . Garrison Access . | . . . Terminal Hacks . | . . . Fabricator Hacks . | . . . Repair Station Hacks . | . . . Recycling Unit Hacks . | . . . Scanalyzer . | . . . Garrison Access Hacks . | . . . Unauthorized Hacks . | . . . Terminals . | . . . Fabricators . | . . . Repair Stations . | . . . Recycling Units . | . . . Scanalyzers . | . . . Garrison Access . | . . . Data Cores Recovered . | . . . Used . | . . . Hacking Detections . | . . . Full Trace Events . | . . . Feedback Events . | . . . Feedback Blocked . | . . . Robot Schematics Acquired . | . . . Robots Built . | . . . Authchips . | . . . Time . | . . . Total Robot Build Rating . | . . . Part Schematics Acquired . | . . . Parts Built . | . . . Authchips . | . . . Time . | . . . Total Part Build Rating . | . . . Parts Repaired . | . . . Time . | . . . Parts Recycled . | . . . Recycled Matter . | . . . Retrieved Matter . | . . . Retrieved Components . | . . . Parts Scanalyzed . | . . . Part Schematics Acquired . | . . . Parts Damaged . | . . . Bothacking | -11 -10 -9 ------------ Run | Yrd Mat Mat Used RIF Installer . | . . . Robots Hacked . | . . . Non-combat . | . . . Combat . | . . . Robot Hacks Applied . | . . . Relay Couplers Released . | . . . Fabnet Peak Effective % . | . . . Robots Rewired . | . . . Allies Hacked . | . . . Hacks Repelled . | . . . Allies | -11 -10 -9 -------- Run | Yrd Mat Mat Total Allies . | . . . Largest Group . | . . . Highest-Rated Group . | . . . Highest-Rated Ally . | . . . Total Orders . | . . . Ally Attacks . | . . . Total Damage . | . . . Kills . | . . . Allies Corrupted . | . . . Allies Melted . | . . . Intel | -11 -10 -9 ------- Run | Yrd Mat Mat Active Infowar (turns) 297 | 9 288 . Sensors 63 | . 63 . Terrain 297 | 9 288 . Robot Analysis Total . | . . . Derelict Logs Recovered . | . . . Drone Launches . | . . . Drone Recoveries . | . . . Exploration | -11 -10 -9 ------------- Run | Yrd Mat Mat Turns Passed 1726 | 132 710 884 Spaces Moved 559 | 103 306 150 Core 60 | 34 . 26 Treads 82 | . . 82 Legs 417 | 69 306 42 Wheels . | . . . Hover . | . . . Flight . | . . . Fastest Speed 50 | 50 120 330 Average Speed 263 | 96 186 532 Slowest Speed 1150 | 120 400 1150 Overloaded Moves . | . . . Propulsion Burnouts . | . . . Robots Hopped . | . . . Potential Cave-ins . | . . . Cave-ins Triggered . | . . . Exploration Rate (%) 16 | 5 34 9 Regions Visited 2 Branch Regions . Pre-discovered Areas . | . . . Known Exits Taken . | . . . Unknown Exits Taken 2 | 1 1 . Scrap Searched . | . . . Spaces Dug . | . . . Terrain Destroyed 65 | . . 65 Melee . | . . . Projectile . | . . . AOE 65 | . . 65 Terrain Rammed . | . . . Walls Destroyed . | . . . Machines Disabled . | . . . Actions | -11 -10 -9 --------- Run | Yrd Mat Mat Total 721 | 126 394 201 Wait 26 | . 26 . Move 557 | 102 305 150 Hop . | . . . Pick Up 22 | 10 5 7 Fast Attach 11 | 2 7 2 Attach 13 | 5 . 8 Detach . | . . . Swap 5 | . 5 . Drop 15 | 1 13 1 Fire 65 | 5 28 32 Melee . | . . . Ram . | . . . Kick 6 | 1 5 . Crush 1 | . . 1 Escape Stasis . | . . . Rewire . | . . . Trap . | . . . Miscellaneous . | . . . Route ------- -11/Scrapyard -10/Materials -9/Materials History --------- Turn | Location | Event 2 | -11/Scrapyard | Met Revision 17 75 | -11/Scrapyard | Discovered new exit (range 8) 133 | -11/Scrapyard | Entered Materials 578 | -10/Materials | Build established: Scavenger-Mutant 738 | -10/Materials | Core integrity fell below 50% 796 | -10/Materials | Discovered new exit (range 16) 843 | -10/Materials | Entered another Materials area 843 | -9/Materials | Evolved 2 slots: Propulsion x2 1352 | -9/Materials | Lost 4 parts (1p1n2w) 1453 | -9/Materials | Core integrity fell below 50% 1467 | -9/Materials | Core integrity fell below 20% 1503 | -9/Materials | Lost 4 parts (1p1n2w) 1533 | -9/Materials | Build established: Mutant 1727 | -9/Materials | Destroyed by S-10 Pest with Light Assault Rifle Last Messages --------------- Slammed into U-05 Engineer. Visual Processing Unit melted. W-16 Scout destroyed. R-06 Scavenger collects Hover Unit. K-01 Serf collects debris. R-06 Scavenger collects Hover Unit. K-01 Serf collects debris. Acquired 1 matter. Lgt. Treads destroyed. Lgt. Ion Engine destroyed. S-10 Pest destroyed. Beam Cannon destroyed. S-10 Pest destroyed. Acquired 2 matter. S-10 Pest destroyed. Acquired 1 matter. Lgt. Assault Rifle destroyed. Acquired 10 matter. G-34 Mercenary destroyed. K-01 Serf collects debris. Map ----- +----------------------------------------------------+ | ?????????????????????????????????????????????? | | ?????????????????????????????????????????????? | | ?????????????????????????????????????????????? | | ?????????????????????????????????????????????? | | ?????????????????????????????????????????????? | | ?????????????????????????????????????????????? | | ????? ?????????????????????????????????????? | | ????# ?????????????????????????????????????? | | ????# ?????????????????????????????????????? | | ????# ?????????????????????????????????????? | | ????# ?????????????????????????????????????? | | ????# ?????????????????????????????????????? | | ????# ?????????????????????????????????????? | | ????# #????????????????????????????????????? | | ????# #????????????????????????????????????? | | ????# #????????????????????????????????????? | | ????# #????????????????????????????????????? | | ????# #????????????????????????????????????? | | ????# ####?????????????????????????????????? | | ????#= ## #######??????###??????????????????? | | ????#%[=# !!#??#### ???????????????????? | | ????#=*%+ !!#??# ????????????????????? | | ????#[%=#* #??# ?????????????????????? | | ????#% # ####s#??????????????????????? | | ????# # + k #??????????????????????? | | ????# # """ ## @####???????????????????? | | ????# # """ ## #???????????????????? | | ????# # """ ##! !#???????????????????? | | ????# # ###!!!!##???????????????????? | | ????# ##########?######????????????????????? | | ????# #????????????????????????????????????? | | ????# #????????????????????????????????????? | | ????# #????????????????????????????????????? | | ????# #????????????????????????????????????? | | ????# %#####????????????????????????????????? | | ????# ##########???????????????????????????? | | ????# # #???????????????????????????? | | ???## #* #???????????????????????????? | | ???##% # = #???????????????????????????? | | ???## #% #???????????????????????????? | | ???## # #???????????????????????????? | | ???## # "" #???????????????????????????? | | ???## + " #???????????????????????????? | | ???## # " #???????????????????????????? | | ???## # #???????????????????????????? | | ????# ##########???????????????????????????? | | ????# #######??????????????????????????????? | | ???## #????????????????????????????????????? | | ???## ##???????????????????????????????????? | | ???## ##???????????????????????????????????? | +----------------------------------------------------+ Best States ------------- Heat Dissipation 35 Energy Generation 12 Energy Capacity 265 Matter Stores 300 Matter Capacity 300 Sight Range 16 Robot Scan Range 14 Terrain Scan Range 16 Terrain Scan Density 10 Evasion (%) 55 Recoil Reduction 1 Item Schematics ----------------- None Robot Schematics ------------------ None Fabricated ------------ Nothing Repaired ---------- Nothing Alien Tech Used ----------------- None Achievements -------------- None Challenges ------------ None Game ------ Seed StasisFlyingBay Manual? 0 Play Time 00:34:48 Cumulative 1.4 hours Start 2025.08.17 @ 23:37:18 End 2025.08.18 @ 00:14:31 Sessions 1 Manual Loads 0 Difficulty Rogue Special Mode None Game No. 2 Rogue 2 Adventurer 0 Explorer 0 Win Type - Total 0 Types 0/0/0/0/0/0/0/0/0/0 Lore% 0 Gallery% 2 Achievement% 2 Wizard Run 0 Options --------- Layout 1 ASCII 0 Keyboard 0 Movement Arrows Keybinds 0 Fullscreen 1 Font 24/Smallcaps Map View 50x40 Zoom Use 0% Tactical HUD 0 Map Filters NONE Filters NONE Steam 1 RUN: 49f8c396-9c75-4671-8507-a6ff7b60696b